Cogmind - Beta 12 @@@ ROGUE MODE // 2024.02.11 @ 05:03:19 Player: Six of Ten Result: Destroyed by G-50 Soldier with Heavy Laser Performance ------------- Evolutions (4) 2000 Regions Visited (11) 2200 Robots Destroyed (116) 580 Value Destroyed (5438) 5438 Prototype IDs (4) 80 Alien Tech Used (0) 0 Bonus (1830) 1830 TOTAL SCORE: 12128 Bonus ------- Pacifist 200 High Alert Combat Kills 110 Follower Combat Kills 327 Entered Garrisons 400 Used RIF Installer 1000 Friendly Fire -207 Cogmind --------- Core Integrity 0/850 Matter 284/300 Energy 160/160 System Corruption 10% Temperature Cool (9) Movement Hovering (150) Ox1 Location -6/Extension Parts ------- > --- POWER (1) -------- Light Fission Core > --- PROPULSION (4) --- Light Treads Improved Medium Treads Gravmag Array > --- UTILITY (6) ------ Medium Storage Unit Hacking Suite > --- WEAPON (4) ------- Gatling Laser Spear Spear > --- INVENTORY (10) --- Xenon Bombardment Thruster Xenon Bombardment Thruster Cooled VTOL Module Relay Coupler [Specialist] (22) Heavy Plasma Cannon Remote Datajack Peak State ------------ > --- POWER ------------ Micro Nuclear Core > --- PROPULSION ------- Carbon-fiber Leg Xenon Bombardment Thruster Xenon Bombardment Thruster Cooled VTOL Module > --- UTILITY ---------- Cryofiber Web Advanced Terrain Scanner Phase Shifter Hacking Suite Relay Coupler [Sentry] Relay Coupler [Specialist] > --- WEAPON ----------- Remote Datajack Ripper Spear Spear > --- INVENTORY -------- Gravmag Array Relay Coupler [Swarmer] Relay Coupler [Sentry] Relay Coupler [Specialist] [Rating: 63] Favorites ----------- Power Improved Ion Engine Engine Improved Ion Engine Power Core Micro Nuclear Core Propulsion Aluminum Leg Treads Light Treads Leg Aluminum Leg Wheel Compact Wheel Hover Unit Gravmag Array Flight Unit Xenon Bombardment Thruster Utility Huge Storage Unit Device Shield Generator Storage Huge Storage Unit Hackware Hacking Suite Protection Light Armor Plating Weapon Heavy Assault Rifle Energy Gun Lightning Gun Ballistic Gun Heavy Assault Rifle Ballistic Cannon Magnetic Acceleration Cannon Launcher Grenade Launcher Special Weapon Remote Datajack Slashing Weapon Axe Piercing Weapon Spear Special Melee Weapon Datajack Build | -11 -10 -9 -9 -8 -8 -8 -7 -6 -6 -6 -6 ------- Run | Jun Mat Mat Min Mat Gar Mat Fac Fac Gar Fac Ext Slots Evolved 8 | . . 2 . 2 . . 2 2 . . . Power . | . . . . . . . . . . . . Propulsion 2 | . . . . 2 . . . . . . . Utility 4 | . . . . . . . 2 2 . . . Weapon 2 | . . 2 . . . . . . . . . Parts Attached 165 | 7 4 5 7 19 18 10 13 2 25 20 35 Power 13 | 1 . . 1 2 . . 2 . 2 2 3 Engine 7 | 1 . . 1 1 . . . . 1 1 2 Core 6 | . . . . 1 . . 2 . 1 1 1 Reactor . | . . . . . . . . . . . . Propulsion 60 | 3 2 . 4 10 6 2 5 . 2 8 18 Treads 24 | . . . 2 . 4 1 5 . 2 4 6 Leg 19 | 2 . . 2 10 2 1 . . . 2 . Wheel 9 | 1 2 . . . . . . . . . 6 Hover 4 | . . . . . . . . . . 1 3 Flight 4 | . . . . . . . . . . 1 3 Utility 26 | 1 2 . 1 1 1 . 2 2 6 4 6 Device 10 | . 1 . 1 . . . . 1 1 3 3 Storage 3 | 1 1 . . . . . . . . . 1 Processor . | . . . . . . . . . . . . Hackware 11 | . . . . 1 1 . 2 1 4 . 2 Protection 2 | . . . . . . . . . 1 1 . Artifact . | . . . . . . . . . . . . Weapon 66 | 2 . 5 1 6 11 8 4 . 15 6 8 Energy Gun 11 | . . 1 . . . 2 1 . 5 1 1 Energy Cannon . | . . . . . . . . . . . . Ballistic Gun 28 | 2 . 3 . 6 5 5 1 . 6 . . Ballistic Cannon 1 | . . . . . . . . . 1 . . Launcher 4 | . . . . . 2 . 1 . . 1 . Special Weapon 7 | . . . . . . 1 . . 2 1 3 Impact Weapon . | . . . . . . . . . . . . Slashing Weapon 10 | . . 1 1 . 4 . . . . . 4 Piercing Weapon 4 | . . . . . . . 1 . 1 2 . Special Melee Weapon 1 | . . . . . . . . . . 1 . Unidentified Prototypes 3 | . . . . . . 2 . . . 1 . Parts Lost 69 | . . 2 2 7 11 3 1 . 10 11 22 Power 9 | . . . 1 2 1 . . . 1 1 3 Propulsion 27 | . . 1 1 4 4 1 1 . 2 4 9 Utility 13 | . . 1 . . . . . . 2 3 7 Weapon 20 | . . . . 1 6 2 . . 5 3 3 Highest Loss Streak 11 | . . 1 1 3 4 2 1 . 2 11 7 To Critical Strikes . | . . . . . . . . . . . . Average Slot Usage (%) 92 | . 98 94 89 98 86 94 99 94 97 95 75 Engine 5 | . 14 11 10 8 . 6 . . 3 . 3 Core 1 | . . . . . 1 . 6 6 2 5 2 Treads 13 | . . . 2 . 13 26 27 26 25 20 5 Leg 8 | . 5 . . 34 19 8 2 . . 2 2 Wheel 3 | . 22 19 9 . . . . . . . 6 Device 4 | . 12 9 10 . . . . . 3 7 6 Storage 8 | . 14 11 11 9 9 9 7 6 6 4 4 Hackware 12 | . . . . 8 9 9 23 26 26 20 16 Energy Gun 2 | . . 8 . . . 4 6 6 8 . . Ballistic Gun 22 | . 28 32 41 35 13 27 23 20 11 9 . Special Weapon 1 | . . . . . . 3 . . 4 5 1 Slashing Weapon 3 | . . . 2 . 17 . . . . . 3 Piercing Weapon 1 | . . . . . . . . . . 4 13 Naked Turns . | . . . . . . . . . . . . Heaviest Build 117 | 13 89 97 100 100 97 93 100 104 111 117 31 Greatest Support 98 | 20 26 26 40 52 62 62 98 96 96 88 40 Greatest Overweight (x) 9 | 1 3 6 6 9 3 2 1 1 1 3 1 Average Overweight (x) 2 | . 2 3 5 1 1 1 1 1 . . . Largest Inventory Capacity 25 | 8 25 25 25 25 25 25 25 25 25 25 10 Average Capacity 23 | 7 21 25 25 25 25 25 25 25 25 20 8 Most Carried 25 | 6 8 20 25 25 22 25 25 25 25 25 10 Average Carried 20 | 3 7 12 23 23 19 24 24 24 24 19 7 Final Capacity 25 | 8 25 25 25 25 25 25 25 25 25 5 10 Final Carried 25 | 6 8 20 22 21 22 25 25 25 25 5 6 Class Distribution -------------------- 21% | Bothacker-Gunner 16% | Scavenger-Gunner 13% | Mutant 10% | Bothacker-Tank 10% | Bothacker-Mutant 8% | Scavenger-Tank 5% | Scavenger-Mutant 4% | Skirmisher 4% | Tank Dominant Class ---------------- Mutant | -10/Materials Skirmisher | -9/Materials Scavenger-Tank | -9/Mines Scavenger-Gunner | -8/Materials Mutant | -8/Garrison Bothacker-Gunner | -8/Materials Bothacker-Gunner | -7/Factory Bothacker-Gunner | -6/Factory Bothacker-Tank | -6/Garrison Bothacker-Mutant | -6/Factory Bothacker-Mutant | -6/Extension Resources | -11 -10 -9 -9 -8 -8 -8 -7 -6 -6 -6 -6 ----------- Run | Jun Mat Mat Min Mat Gar Mat Fac Fac Gar Fac Ext Matter Collected 3869 | 208 . 481 133 760 251 234 329 . 833 241 399 Remotely . | . . . . . . . . . . . . Salvage Created 5223 | . . 641 207 1228 287 158 351 . 914 248 1189 Parts 280 | . . 36 9 84 26 6 21 . 46 8 44 Haulers Intercepted 2 | . . . . 2 . . . . . . . Recyclers Shooed 5 | . . 1 . 3 . . . . . . 1 Parts Field Recycled . | . . . . . . . . . . . . Retrieved Matter . | . . . . . . . . . . . . Parts Self-Destructed . | . . . . . . . . . . . . Prevented . | . . . . . . . . . . . . Kills | -11 -10 -9 -9 -8 -8 -8 -7 -6 -6 -6 -6 ------- Run | Jun Mat Mat Min Mat Gar Mat Fac Fac Gar Fac Ext Combat Hostiles Destroyed 101 | . . 13 4 25 13 3 6 . 18 5 14 Melee 22 | . . . . . 4 . . . . 5 13 Guns 78 | . . 13 4 25 8 3 6 . 18 . 1 AOE 1 | . . . . . 1 . . . . . . Classes Destroyed 17 | . . 6 . 6 1 . 1 . 1 1 1 Worker 1 | . . . . 1 . . . . . . . Builder 2 | . . . . 1 . . . . . . 1 Hauler 2 | . . . . 2 . . . . . . . Recycler 3 | . . 1 . . . . . . . . 2 Mechanic 1 | . . . . 1 . . . . . . . Watcher 5 | . . . . 1 . . 2 . . . 2 Swarmer 21 | . . 3 . 7 7 . . . 4 . . Cutter 5 | . . . . . 2 . . . 3 . . Grunt 38 | . . 4 2 13 2 1 3 . 6 2 5 Brawler 3 | . . 1 1 . . . . . 1 . . Duelist 8 | . . 1 1 . . 1 1 . 1 2 1 Protector 1 | . . . . . . . . . . 1 . Sentry 16 | . . 4 . 4 2 . . . 2 . 4 Hunter 6 | . . . . 1 . 1 1 . 1 . 2 Programmer 1 | . . . . . . . 1 . . . . Behemoth 1 | . . . . . . . . . . . 1 Butcher 1 | . . . . . . . . . . . 1 Infiltrator 1 | . . . . . . . . . 1 . . Best Kill Streak 7 | . . 5 4 7 3 2 4 . 3 5 7 Combat Bots Only 6 | . . 4 4 6 3 2 4 . 3 5 6 Max Kills in Single Turn 2 | . . 2 1 2 2 1 1 . 2 1 1 Gunslinging 1 | . . . . 1 1 . . . . . . Exploded 1 | . . . . . 1 . . . . . . Melee 1 | . . . . . 1 . . . . 1 1 Uniques/NPCs Destroyed . | . . . . . . . . . . . . Combat | -11 -10 -9 -9 -8 -8 -8 -7 -6 -6 -6 -6 -------- Run | Jun Mat Mat Min Mat Gar Mat Fac Fac Gar Fac Ext Damage Taken 9041 | . . 340 500 1110 1056 319 780 . 1510 1233 2193 Core 1398 | . . 132 120 56 149 . 79 . 138 14 710 Absorbed by Shields 397 | . . . 152 . . . . . 104 141 . Regen/Repaired (Parts) 56 | . . . . . . 45 . . . 11 . Core Remaining (%) 77 | 100 100 . 37 . . 62 88 . . . . Volleys Fired 214 | . . 20 10 51 22 13 14 . 63 8 13 Largest 4 | . . 4 4 4 4 4 4 . 4 4 1 Hottest 227 | . . 103 89 99 94 121 129 . 227 193 80 Shots Fired 666 | . . 78 39 203 63 43 50 . 160 17 13 Gun 631 | . . 78 39 203 58 43 50 . 144 8 8 Cannon 3 | . . . . . . . . . . 3 . Launcher 6 | . . . . . 5 . . . . 1 . Special 26 | . . . . . . . . . 16 5 5 Kinetic 534 | . . 68 39 203 58 37 42 . 78 9 . Thermal 45 | . . . . . . . . . 35 2 8 Explosive 6 | . . . . . 5 . . . . 1 . Electromagnetic 55 | . . 10 . . . 6 8 . 31 . . Robot Hit Streak 14 | . . 8 7 6 11 13 14 . 10 3 14 Robot Miss Streak 5 | . . 3 2 4 3 2 5 . 5 3 3 Penetration Max 1 | . . . . 1 . . . . 1 . . Secondary Targets 23 | . . 3 1 7 3 1 2 . 6 . . Max Gunslinging Chain 1 | . . 1 1 1 1 1 1 . 1 . . Shots Hit Robots 457 | . . 46 25 99 38 32 36 . 83 24 74 Core Hits 227 | . . 26 8 51 18 9 24 . 48 15 28 Critical Kills 3 | . . . . 2 . . . . 1 . . Critical Parts Destroyed 3 | . . 2 1 . . . . . . . . Critical Strikes 18 | . . 2 1 2 1 . 1 . 1 2 8 Destroy 6 | . . 2 1 2 . . . . 1 . . Blast 1 | . . . . . . . . . . 1 . Sever 6 | . . . . . 1 . . . . . 5 Impale 5 | . . . . . . . 1 . . 1 3 Melee Attacks 180 | . . 4 43 . 17 . 4 . 1 21 90 Impact . | . . . . . . . . . . . . Slashing 112 | . . 4 43 . 17 . . . . . 48 Piercing 68 | . . . . . . . 4 . 1 21 42 Sneak Attacks 6 | . . . . . . . . . . . 6 Combat Hostiles 1 | . . . . . . . . . . . 1 Follow-up Attacks 25 | . . . . . 4 . . . . 4 17 Damage Inflicted 9396 | . . 686 361 1876 905 406 603 . 1526 691 2342 Guns 6063 | . . 657 359 1873 388 406 539 . 1526 111 204 Cannons 80 | . . . . . . . . . . 80 . Explosions 379 | . . 29 . . 230 . . . . 120 . Melee 2867 | . . . . . 287 . 64 . . 380 2136 Ramming 7 | . . . 2 3 . . . . . . 2 Kinetic 4857 | . . 552 359 1873 388 318 481 . 759 127 . Thermal 764 | . . 29 . . . . . . 485 46 204 Explosive 350 | . . . . . 230 . . . . 120 . Electromagnetic 533 | . . 105 . . . 88 58 . 282 . . Impact 18 | . . . . . . . . . . 18 . Slashing 1549 | . . . . . 287 . . . . . 1262 Piercing 1318 | . . . . . . . 64 . . 380 874 Highest Corruption 10 | . 1 . 3 . . . 2 . 4 4 10 Average Corruption 3 | . 1 . 1 . . . 1 . 4 4 5 Corruption Purged . | . . . . . . . . . . . . Corruption Blocked . | . . . . . . . . . . . . Effects 86 | . 1 . 13 . . . 3 . 29 13 27 Message Errors 28 | . 1 . 4 . . . . . 12 5 6 Matter Fused 26 | . . . 3 . . . 2 . 10 4 7 Heat Flow Errors 10 | . . . 1 . . . . . 2 2 5 Energy Discharges 10 | . . . 3 . . . . . 3 2 2 Data Loss (minor) 9 | . . . 2 . . . 1 . 1 . 5 Data Loss (major) 2 | . . . . . . . . . . . 2 Weapon Failures 1 | . . . . . . . . . 1 . . Overload Shots . | . . . . . . . . . . . . Overflow Damage 194 | . . . . . 26 . . . . . 168 Projectiles . | . . . . . . . . . . . . Explosions 21 | . . . . . 21 . . . . . . Melee 173 | . . . . . 5 . . . . . 168 Knockbacks 2 | . . . . . . . . . . 2 . Impact . | . . . . . . . . . . . . Kinetic 2 | . . . . . . . . . . 2 . Secondary . | . . . . . . . . . . . . Self-Inflicted Damage 129 | . . . 1 . 127 . . . . . 1 Shots 5 | . . . . . 5 . . . . . . Rammed 2 | . . . 1 . . . . . . . 1 Targets Rammed 4 | . . . 1 2 . . . . . . 1 Kicked 2 | . . . . 2 . . . . . . . Crushed . | . . . . . . . . . . . . Highest Temperature 498 | . . 82 84 255 63 196 117 . 498 229 249 Average Temperature 77 | . . 34 23 74 23 90 37 . 117 93 91 Received Heat Transfer 2161 | . . 84 36 531 153 36 234 . 375 184 528 Effects 5 | . . . . 1 . . . . 4 . . Shutdowns 1 | . . . . . . . . . 1 . . Energy Bleed 1 | . . . . 1 . . . . . . . Interference 2 | . . . . . . . . . 2 . . Damage (minor) 1 | . . . . . . . . . 1 . . Siege Activations . | . . . . . . . . . . . . Robots Corrupted . | . . . . . . . . . . . . Combat Hostiles . | . . . . . . . . . . . . Parts Fried . | . . . . . . . . . . . . Impact Corruptions . | . . . . . . . . . . . . Robots Melted . | . . . . . . . . . . . . Combat Hostiles . | . . . . . . . . . . . . Parts Melted 5 | . . 1 . . . . . . 2 . 2 Heat Transferred 1554 | . . 50 . . . . . . 979 100 425 Parts Sabotaged . | . . . . . . . . . . . . Parts Stolen . | . . . . . . . . . . . . Parts Stripped . | . . . . . . . . . . . . Power Chain Reactions 1 | . . 1 . . . . . . . . . Missiles Intercepted . | . . . . . . . . . . . . Alert | -11 -10 -9 -9 -8 -8 -8 -7 -6 -6 -6 -6 ------- Run | Jun Mat Mat Min Mat Gar Mat Fac Fac Gar Fac Ext Peak Influence 1073 | . . 235 115 449 784 382 147 71 1073 577 287 Initial 562 | . . . 91 . 291 382 46 71 49 562 151 Average 252 | . . 133 27 84 587 180 45 71 490 454 178 Maximum Alert Level 3 | . . 1 . 2 3 1 . . 3 2 1 Low Security (%) 56 | 100 100 66 100 87 . 48 100 100 27 . 53 Level 1 17 | . . 33 . 7 13 51 . . 19 40 46 Level 2 16 | . . . . 5 54 . . . 23 59 . Level 3 9 | . . . . . 32 . . . 28 . . Level 4 . | . . . . . . . . . . . . Level 5 . | . . . . . . . . . . . . High Security . | . . . . . . . . . . . . Max Security . | . . . . . . . . . . . . Squads Dispatched 13 | . . 2 . 5 . . 2 . . 1 3 Investigation 4 | . . 2 . 1 . . . . . . 1 Extermination 1 | . . . . . . . 1 . . . . Reinforcement 5 | . . . . 2 . . 1 . . . 2 Assault 1 | . . . . . . . . . . 1 . Garrison 2 | . . . . 2 . . . . . . . Intercept . | . . . . . . . . . . . . Searches Triggered . | . . . . . . . . . . . . Construction Impeded 2 | . . . . . . . . . . . 2 Haulers Reinforced . | . . . . . . . . . . . . Active Scanning Responses . | . . . . . . . . . . . . Cargo Convoy Interrupts . | . . . . . . . . . . . . Stealth | -11 -10 -9 -9 -8 -8 -8 -7 -6 -6 -6 -6 --------- Run | Jun Mat Mat Min Mat Gar Mat Fac Fac Gar Fac Ext Distress Signals 4 | . . 1 . 2 . 1 . . . . . Communications Jammed . | . . . . . . . . . . . . Distress Signals . | . . . . . . . . . . . . Times Spotted 153 | . 1 17 4 35 14 5 8 . 32 6 31 Peak Tracking Total 7 | . 1 5 2 6 4 2 4 . 7 5 5 Tactical Retreats 10 | . . 1 . 2 1 . . . 3 . 3 Traps | -11 -10 -9 -9 -8 -8 -8 -7 -6 -6 -6 -6 ------- Run | Jun Mat Mat Min Mat Gar Mat Fac Fac Gar Fac Ext Traps Triggered 22 | . 1 2 2 . 7 . 1 . 7 . 2 Indirectly . | . . . . . . . . . . . . Trap Hack Attempts . | . . . . . . . . . . . . Triggered . | . . . . . . . . . . . . Disarmed . | . . . . . . . . . . . . Reprogrammed . | . . . . . . . . . . . . Reused . | . . . . . . . . . . . . Traps Extracted . | . . . . . . . . . . . . Installed . | . . . . . . . . . . . . Triggered . | . . . . . . . . . . . . Machines | -11 -10 -9 -9 -8 -8 -8 -7 -6 -6 -6 -6 ---------- Run | Jun Mat Mat Min Mat Gar Mat Fac Fac Gar Fac Ext Machines Disabled 12 | . . 1 1 3 3 . . . 4 . . Max in Single Turn 1 | . . 1 1 1 1 . . . 1 . . Garrison Relay 6 | . . . . . 3 . . . 3 . . Machines Repaired . | . . . . . . . . . . . . Machines Sabotaged . | . . . . . . . . . . . . Overloaded Fab Kills . | . . . . . . . . . . . . Hacking | -11 -10 -9 -9 -8 -8 -8 -7 -6 -6 -6 -6 --------- Run | Jun Mat Mat Min Mat Gar Mat Fac Fac Gar Fac Ext Machines Accessed 32 | . 3 5 1 7 2 5 2 1 2 2 2 Terminals 24 | . 3 5 . 4 2 4 1 . 2 1 2 Fabricators . | . . . . . . . . . . . . Repair Stations 3 | . . . . . . 1 1 . . 1 . Recycling Units . | . . . . . . . . . . . . Scanalyzers 2 | . . . . 2 . . . . . . . Garrison Access 2 | . . . . 1 . . . 1 . . . Total Hacks 83 | . 4 12 1 25 2 18 5 2 5 4 5 Successful 41 | . . 5 1 17 2 7 1 2 2 3 1 Failed 42 | . 4 7 . 8 . 11 4 . 3 1 4 Catastrophic 11 | . 3 3 . 1 . 3 . . . . 1 Database Lockouts . | . . . . . . . . . . . . Manual 40 | . 4 12 . 12 . 12 . . . . . Terminals 55 | . 4 12 . 12 2 12 1 . 5 2 5 Fabricators . | . . . . . . . . . . . . Repair Stations 12 | . . . . . . 6 4 . . 2 . Recycling Units . | . . . . . . . . . . . . Scanalyzers 11 | . . . . 11 . . . . . . . Garrison Access 4 | . . . . 2 . . . 2 . . . Terminal Hacks 13 | . . 2 1 2 2 1 1 . 2 1 1 Open Door 2 | . . . 1 . . . . . . 1 . Open DSF 1 | . . . . . . . 1 . . . . Level Access Points 1 | . . . . . . . . . . . 1 Emergency Access Points 1 | . . . . . . . . . 1 . . Garrison Index 1 | . . . . 1 . . . . . . . Unreport Threat 1 | . . . . . . 1 . . . . . Recall Investigation 1 | . . 1 . . . . . . . . . Registered Components 2 | . . 1 . 1 . . . . . . . Garrison Registry 1 | . . . . . 1 . . . . . . Security Stations 2 | . . . . . 1 . . . 1 . . Fabricator Hacks . | . . . . . . . . . . . . Repair Station Hacks 5 | . . . . . . 3 . . . 2 . Scan Component 2 | . . . . . . 1 . . . 1 . Repair 2 | . . . . . . 1 . . . 1 . Refit 1 | . . . . . . 1 . . . . . Recycling Unit Hacks . | . . . . . . . . . . . . Scanalyzer 11 | . . . . 11 . . . . . . . Insert Component 6 | . . . . 6 . . . . . . . Analyze 5 | . . . . 5 . . . . . . . Garrison Access Hacks 3 | . . . . 1 . . . 2 . . . Unlock Access 2 | . . . . 1 . . . 1 . . . Coupler Status 1 | . . . . . . . . 1 . . . Unauthorized Hacks 9 | . . 3 . 3 . 3 . . . . . Terminals 9 | . . 3 . 3 . 3 . . . . . Botnet 9 | . . 3 . 3 . 3 . . . . . Fabricators . | . . . . . . . . . . . . Repair Stations . | . . . . . . . . . . . . Recycling Units . | . . . . . . . . . . . . Scanalyzers . | . . . . . . . . . . . . Garrison Access . | . . . . . . . . . . . . Data Cores Recovered . | . . . . . . . . . . . . Used . | . . . . . . . . . . . . Hacking Detections 29 | . 3 5 . 7 2 5 2 1 1 1 2 Full Trace Events 3 | . . . . 1 . 1 . . . . 1 Feedback Events . | . . . . . . . . . . . . Feedback Blocked . | . . . . . . . . . . . . Robot Schematics Acquired . | . . . . . . . . . . . . Robots Built . | . . . . . . . . . . . . Authchips . | . . . . . . . . . . . . Time . | . . . . . . . . . . . . Total Robot Build Rating . | . . . . . . . . . . . . Part Schematics Acquired 5 | . . . . 5 . . . . . . . Parts Built . | . . . . . . . . . . . . Authchips . | . . . . . . . . . . . . Time . | . . . . . . . . . . . . Total Part Build Rating . | . . . . . . . . . . . . Parts Repaired 2 | . . . . . . 1 . . . 1 . Time 144 | . . . . . . 36 . . . 108 . Parts Recycled . | . . . . . . . . . . . . Recycled Matter . | . . . . . . . . . . . . Retrieved Matter . | . . . . . . . . . . . . Retrieved Components . | . . . . . . . . . . . . Parts Scanalyzed 5 | . . . . 5 . . . . . . . Part Schematics Acquired 5 | . . . . 5 . . . . . . . Parts Damaged . | . . . . . . . . . . . . Bothacking | -11 -10 -9 -9 -8 -8 -8 -7 -6 -6 -6 -6 ------------ Run | Jun Mat Mat Min Mat Gar Mat Fac Fac Gar Fac Ext Used RIF Installer 2 | . . . . . 1 . . . 1 . . Hotswap 1 | . . . . . . . . . 1 . . Robots Hacked 16 | . . . . . . . . . 9 2 5 Non-combat . | . . . . . . . . . . . . Combat 16 | . . . . . . . . . 9 2 5 Robot Hacks Applied 18 | . . . . . . . . . 11 2 5 parse_system 2 | . . . . . . . . . 1 1 . disrupt_area 1 | . . . . . . . . . . . 1 spike_heat 2 | . . . . . . . . . 2 . . overload_power 2 | . . . . . . . . . 1 . 1 go_dormant 1 | . . . . . . . . . 1 . . overwrite_iff 2 | . . . . . . . . . 2 . . formatsys_high 8 | . . . . . . . . . 4 1 3 Relay Couplers Released 24 | . . . . . 12 . . . 12 . . Machine Destruction 24 | . . . . . 12 . . . 12 . . Attached 8 | . . . . . 1 . . 1 4 . 2 Fabnet Peak Effective % . | . . . . . . . . . . . . Robots Rewired 7 | . . . . . . . . . . . 7 Allies Hacked . | . . . . . . . . . . . . Hacks Repelled . | . . . . . . . . . . . . Allies | -11 -10 -9 -9 -8 -8 -8 -7 -6 -6 -6 -6 -------- Run | Jun Mat Mat Min Mat Gar Mat Fac Fac Gar Fac Ext Total Allies 18 | . . . . . . . . . 7 1 10 Largest Group 7 | . . . . . . . . . 2 2 7 Highest-Rated Group 235 | . . . . . . . . . 160 64 235 Highest-Rated Ally 80 | . . . . . . . . . 80 32 39 Total Orders . | . . . . . . . . . . . . Ally Attacks 90 | . . . . . . . . . 37 5 48 Total Damage 2401 | . . . . . . . . . 1068 253 1080 Kills 12 | . . . . . . . . . 7 . 5 Allies Corrupted . | . . . . . . . . . . . . Allies Melted . | . . . . . . . . . . . . Intel | -11 -10 -9 -9 -8 -8 -8 -7 -6 -6 -6 -6 ------- Run | Jun Mat Mat Min Mat Gar Mat Fac Fac Gar Fac Ext Robot Analysis Total . | . . . . . . . . . . . . Derelict Logs Recovered 1 | . . . 1 . . . . . . . . Drone Launches . | . . . . . . . . . . . . Drone Recoveries . | . . . . . . . . . . . . Exploration | -11 -10 -9 -9 -8 -8 -8 -7 -6 -6 -6 -6 ------------- Run | Jun Mat Mat Min Mat Gar Mat Fac Fac Gar Fac Ext Turns Passed 12026 | 72 254 666 2084 1473 1772 772 1094 63 2129 673 974 Spaces Moved 5150 | 55 168 383 946 572 633 258 415 25 758 274 663 Core 10 | 3 . . . . . . . . . 7 . Treads 2021 | . . . 73 . 332 258 415 25 758 150 10 Legs 974 | 24 41 . . 572 301 . . . . 36 . Wheels 1782 | 28 127 383 873 . . . . . . . 371 Hover 302 | . . . . . . . . . . 81 221 Flight 61 | . . . . . . . . . . . 61 Fastest Speed 42 | 50 120 135 175 192 235 235 235 245 165 80 42 Average Speed 196 | 101 131 140 199 202 254 254 237 245 244 181 92 Slowest Speed 750 | 120 135 190 320 750 330 312 245 245 247 250 240 Overloaded Moves . | . . . . . . . . . . . . Propulsion Burnouts . | . . . . . . . . . . . . Robots Hopped . | . . . . . . . . . . . . Cave-ins Triggered 3 | . . . 2 . . . . . . . 1 Exploration Rate (%) 36 | 3 37 28 100 46 70 27 9 1 76 5 37 Regions Visited 11 Branch Regions 2 Pre-discovered Areas 2 | . . . 2 . . . . . . . . Known Exits Taken 2 | . . . . 1 . . . 1 . . . Unknown Exits Taken 7 | 1 1 1 1 . . 1 1 . . 1 . Scrap Searched 1 | . . . 1 . . . . . . . . Spaces Dug 48 | . . 2 41 . . . . . . 1 4 Terrain Destroyed 72 | . . 6 41 1 16 . . . 2 2 4 Melee 48 | . . 2 41 . . . . . . 1 4 Projectile 3 | . . . . 1 . . . . 2 . . AOE 21 | . . 4 . . 16 . . . . 1 . Terrain Rammed . | . . . . . . . . . . . . Walls Destroyed . | . . . . . . . . . . . . Machines Disabled . | . . . . . . . . . . . . Actions | -11 -10 -9 -9 -8 -8 -8 -7 -6 -6 -6 -6 --------- Run | Jun Mat Mat Min Mat Gar Mat Fac Fac Gar Fac Ext Total 6335 | 67 199 453 1032 768 722 345 487 28 916 418 900 Wait 359 | . 27 29 20 89 3 43 17 . 25 78 28 Move 5139 | 54 167 382 944 572 632 257 414 24 757 273 663 Hop . | . . . . . . . . . . . . Pick Up 116 | 6 1 13 6 17 10 12 11 2 20 6 12 Fast Attach 41 | 6 1 1 . 4 1 4 . . 5 2 17 Attach 59 | . . 1 4 7 9 2 3 2 8 12 11 Detach 10 | . . . . 2 . 1 . . . . 7 Swap 65 | 1 3 3 3 8 8 4 10 . 12 6 7 Drop 73 | . . . . 16 . 9 12 . 11 17 8 Fire 214 | . . 20 10 51 22 13 14 . 63 8 13 Melee 145 | . . 4 43 . 12 . 4 . 1 16 65 Ram 2 | . . . 1 . . . . . . . 1 Kick 2 | . . . . 2 . . . . . . . Crush . | . . . . . . . . . . . . Escape Stasis 66 | . . . 1 . 25 . 2 . 12 . 26 Rewire 44 | . . . . . . . . . 2 . 42 Trap . | . . . . . . . . . . . . Miscellaneous . | . . . . . . . . . . . . Route ------- -11/Junkyard -10/Materials -9/Materials -9/Mines (discovered 2 exits: *Mat x2) -8/Materials -8/Garrison (discovered 3 exits: *Mat x3) -8/Materials -7/Factory -6/Factory -6/Garrison (discovered 3 exits: *Fac x3) -6/Factory -6/Extension (discovered 2 exits: Fac x2) History --------- Turn | Location | Event 7 | -11/Junkyard | Discovered new exit (range 15) 73 | -11/Junkyard | Entered Materials 217 | -10/Materials | Discovered new exit (range 11) 301 | -10/Materials | Build established: Mutant 327 | -10/Materials | Entered another Materials area 327 | -9/Materials | Evolved 2 slots: Weapon x2 631 | -9/Materials | Build established: Skirmisher 977 | -9/Materials | Discovered new exit (range 9) 993 | -9/Materials | Entered Mines 994 | -9/Mines | Learned location of Storage (-8) 1096 | -9/Mines | Received a Rocket Launcher from a helpful Derelict 1132 | -9/Mines | Found a damaged Exp. Sensor Array with a note attached 1136 | -9/Mines | Found Prototype Device 1175 | -9/Mines | Discovered new exit (range 13) 1218 | -9/Mines | Met a Derelict who couldn't figure out how to use a Trap Extractor 1370 | -9/Mines | Build established: Tank 1591 | -9/Mines | Core integrity fell below 50% 1808 | -9/Mines | Discovered new exit (range 12) 1904 | -9/Mines | Build established: Scavenger-Tank 2800 | -9/Mines | Crushed by falling debris 2853 | -9/Mines | Crushed by falling debris 2871 | -9/Mines | Build established: Mutant 3077 | -9/Mines | Entered Materials 3077 | -8/Materials | Evolved 2 slots: Propulsion x2 3405 | -8/Materials | Identified Exp. Sensor Array 3420 | -8/Materials | Build established: Scavenger-Gunner 4403 | -8/Materials | Garrison activated, responded to threat 4443 | -8/Materials | Lost 3 parts (1p1n1w) 4550 | -8/Materials | Identified exit to Garrison 4550 | -8/Materials | Entered Garrison 4658 | -8/Garrison | Lost 4 parts (1n3w) 4756 | -8/Garrison | Triggered checkpoint 4783 | -8/Garrison | Garrison Relay disabled 5004 | -8/Garrison | Triggered checkpoint 5014 | -8/Garrison | Build established: Mutant 5068 | -8/Garrison | Triggered checkpoint 5111 | -8/Garrison | Garrison Relay disabled 5137 | -8/Garrison | Learned Materials security intel 5236 | -8/Garrison | Discovered new exit (range 8) 5371 | -8/Garrison | Lost 3 parts (1n2w) 5482 | -8/Garrison | Triggered checkpoint 5491 | -8/Garrison | Triggered checkpoint 5650 | -8/Garrison | Triggered checkpoint 5715 | -8/Garrison | Garrison Relay disabled 5760 | -8/Garrison | Discovered new exit (range 11) 5777 | -8/Garrison | Discovered new exit (range 7) 5777 | -8/Garrison | Discovered new exit (range 67) 5777 | -8/Garrison | Discovered new exit (range 64) 5899 | -8/Garrison | Installed Relay Interface Framework 5971 | -8/Garrison | Build established: Scavenger-Gunner 6322 | -8/Garrison | Entered Materials 6530 | -8/Materials | Build established: Bothacker-Gunner 6599 | -8/Materials | Repaired Broken Lgt. Treads 7087 | -8/Materials | Discovered new exit (range 4) 7094 | -8/Materials | Entered Factory 7094 | -7/Factory | Evolved 2 slots: Utility x2 7111 | -7/Factory | Identified exit to DSF 8148 | -7/Factory | Discovered new exit (range 15) 8188 | -7/Factory | Entered another Factory area 8188 | -6/Factory | Evolved 2 slots: Utility x2 8226 | -6/Factory | Identified exit to Garrison 8251 | -6/Factory | Entered Garrison 8462 | -6/Garrison | Triggered checkpoint 8525 | -6/Garrison | Garrison Relay disabled 8700 | -6/Garrison | Triggered checkpoint 8702 | -6/Garrison | Triggered checkpoint 8846 | -6/Garrison | Learned Factory security intel 8880 | -6/Garrison | Discovered new exit (range 12) 8920 | -6/Garrison | Triggered checkpoint 9108 | -6/Garrison | Garrison Relay disabled 9228 | -6/Garrison | Triggered checkpoint 9266 | -6/Garrison | Triggered checkpoint 9366 | -6/Garrison | Found embedded Infiltrators 9381 | -6/Garrison | Discovered new exit (range 13) 9480 | -6/Garrison | Triggered checkpoint 9528 | -6/Garrison | Garrison Relay disabled 9610 | -6/Garrison | Build established: Bothacker-Tank 9827 | -6/Garrison | Discovered new exit (range 14) 10286 | -6/Garrison | Expanded RIF knowledge: Hotswap 10380 | -6/Garrison | Entered Factory 10380 | -6/Factory | Accompanied by 2 allies 10730 | -6/Factory | First assault squad dispatched 10785 | -6/Factory | Repaired Faulty Exp. Sensor Array 10912 | -6/Factory | Lost 11 parts (1p4n3u3w) 10976 | -6/Factory | Build established: Bothacker-Mutant 11048 | -6/Factory | Discovered new exit (range 9) 11053 | -6/Factory | Entered Extension 11150 | -6/Extension | Identified exit to Factory 11477 | -6/Extension | Core integrity fell below 50% 11505 | -6/Extension | Lost 7 parts (1p3n2u1w) 11529 | -6/Extension | Spotted B-75 Beast 11763 | -6/Extension | Crushed by falling debris 11763 | -6/Extension | System corruption reached 10% 11794 | -6/Extension | Lost 3 parts (3u) 11929 | -6/Extension | Core integrity fell below 20% 11941 | -6/Extension | Spotted B-75 Beast 11956 | -6/Extension | Lost 5 parts (1p4n) 11972 | -6/Extension | Build established: Scavenger-Mutant 11991 | -6/Extension | Destroyed B-75 Beast 12015 | -6/Extension | Lost 4 parts (1p1n1u1w) 12027 | -6/Extension | Destroyed by G-50 Soldier with Heavy Laser Last Messages --------------- 11977_ V7AJVQW:HQF3VT |